bitfinex/quotes_SOLUSD_20240825
["timestamp","ask_amount","ask_price","bid_price","bid_amount"]
[1724571527183,6.4262,155.62,155.57,6.4279]
[1724571527503,6.4262,155.62,155.56,6.4283]
[1724571528899,6.4256,155.63,155.57,6.4276]
[1724571529399,6.4263,155.61,155.56,6.4283]
[1724571529777,53.9794291,155.65,155.55,6.4709]
[1724571530117,16.0647,155.63,155.51,6.4709]
[1724571530277,37.9171291,155.65,155.51,6.4709]
[1724571530472,6.4257,155.63,155.57,6.4279]
[1724571530704,6.4254,155.64,155.57,6.4279]
[1724571531003,6.4258,155.63,155.57,6.4279]
[1724571531190,6.4258,155.63,155.53,31.75776245]
[1724571531388,6.425,155.64,155.54,1.28534459]
[1724571531600,6.425,155.64,155.59,6.4271]
[1724571531772,6.2358,155.66,155.54,45.0]
[1724571531773,12.6604,155.66,155.54,45.0]
[1724571531976,37.99356245,155.7,155.56,31.75776245]
[1724571532197,37.99356245,155.7,155.57,46.2850445]
[1724571532402,44.41616245,155.7,155.57,45.0]
[1724571532704,15.7312,155.72,155.57,45.0]
[1724571532705,22.1533,155.72,155.66,6.4241]
[1724571532883,15.7312,155.72,155.66,6.4241]
[1724571533080,6.4223,155.71,155.66,6.4241]
[1724571533274,15.7312,155.72,155.59,31.75776245]
[1724571533496,6.2358,155.74,155.62,31.75776245]
[1724571533691,6.2358,155.74,155.68,6.423]
[1724571534208,12.6569,155.74,155.68,6.423]
[1724571535303,6.4214,155.73,155.68,6.423]
[1724571535508,6.4214,155.73,155.63,1.28467154]
[1724571535509,38.17916245,155.73,155.63,1.28467154]
[1724571535993,31.75776245,155.73,155.68,6.4234]
[1724571536491,38.17926245,155.73,155.59,31.75776245]
[1724571536686,38.17926245,155.73,155.6,45.0]
[1724571537001,6.4218,155.72,155.6,45.0]
[1724571537310,6.4218,155.72,155.67,6.4237]
[1724571538011,6.4218,155.72,155.66,6.424]
[1724571538184,38.17916245,155.73,155.67,6.4237]
[1724571538509,38.17916245,155.73,155.6,45.0]
[1724571538729,31.75776245,155.73,155.68,6.4233]
[1724571539119,53.90936245,155.76,155.69,6.4229]
[1724571539284,12.6553,155.78,155.65,31.75776245]
[1724571539610,12.6553,155.78,155.72,6.4214]
[1724571539799,6.4197,155.77,155.72,6.4214]
[1724571540106,6.4197,155.77,155.71,6.4221]
[1724571540318,6.4197,155.77,155.66,15.2656]
[1724571540319,12.6551,155.78,155.72,6.4217]
[1724571540499,37.95066245,155.82,155.66,15.2656]
[1724571540686,37.95066245,155.82,155.76,6.4197]
[1724571540884,6.4181,155.81,155.75,6.4205]
[1724571541383,6.4194,155.78,155.67,6.4111]
[1724571541706,6.4206,155.75,155.7,6.4223]
[1724571542009,38.17786245,155.76,155.7,6.4225]
[1724571542614,38.17786245,155.76,155.71,6.4221]
[1724571543111,6.4214,155.73,155.68,6.423]
[1724571543284,38.17916245,155.73,155.63,6.4111]
[1724571543486,31.75776245,155.73,155.68,6.4233]
[1724571543690,16.182,155.75,155.69,6.4229]
[1724571544008,6.4195,155.78,155.72,6.4217]
[1724571544180,16.182,155.79,155.75,6.4205]
[1724571544690,16.182,155.79,155.74,6.4205]
[1724571544883,6.4185,155.8,155.74,6.4205]
[1724571545116,6.4181,155.81,155.68,31.75776245]
[1724571545321,44.36826245,155.82,155.76,6.42]
[1724571545487,37.95066245,155.82,155.74,6.4206]
[1724571546002,6.4186,155.8,155.74,6.4209]
[1724571546205,6.4189,155.79,155.74,6.4209]
[1724571546589,31.75776245,155.79,155.65,31.75776245]
[1724571546787,6.4206,155.75,155.63,6.4111]
[1724571546987,31.75776245,155.76,155.63,8.80713531]
[1724571547201,6.4216,155.73,155.68,6.4233]
[1724571547515,6.4216,155.73,155.67,6.4238]
[1724571547709,31.75776245,155.73,155.59,6.4111]
[1724571547918,6.423,155.69,155.63,6.4253]
[1724571548125,22.3749,155.75,155.64,1.28498039]
[1724571548409,51.75776245,155.74,155.59,6.4111]
[1724571548607,6.4222,155.71,155.59,6.4111]
[1724571548813,6.4216,155.73,155.67,6.4238]
[1724571548987,31.75776245,155.74,155.68,6.4231]
[1724571549188,6.4215,155.73,155.68,6.4231]
[1724571549409,22.3749,155.75,155.59,6.4111]
[1724571549410,6.421,155.74,155.69,6.4229]
[1724571549613,6.421,155.74,155.61,31.75776245]
[1724571549816,22.3749,155.79,155.67,15.6262]
[1724571550042,22.3749,155.79,155.74,6.4207]
[1724571550319,22.3749,155.79,155.68,7.6952682]
[1724571550320,6.4193,155.78,155.73,6.4213]
[1724571550528,22.3749,155.79,155.69,1.28416329]
[1724571550712,22.3749,155.83,155.76,6.4201]
[1724571551029,6.418,155.82,155.76,6.4201]
[1724571551330,6.4182,155.81,155.74,6.4205]
[1724571551511,6.4182,155.81,155.75,6.4203]
[1724571552837,6.4182,155.81,155.73,6.4209]
[1724571553705,6.4193,155.78,155.72,6.4217]
[1724571554206,6.4188,155.8,155.73,6.4213]
[1724571554637,38.04531674,155.81,155.68,6.4111]
[1724571554930,6.4205,155.75,155.69,6.4226]
[1724571555128,6.4201,155.76,155.7,6.4225]
[1724571556131,6.4197,155.78,155.67,15.6262]
[1724571556314,6.4197,155.77,155.72,6.4217]
[1724571556511,6.4201,155.76,155.7,6.4222]
[1724571556818,6.4206,155.75,155.7,6.4222]
[1724571557023,38.4185,155.83,155.72,6.4216]
[1724571557024,6.4198,155.77,155.72,6.4216]
[1724571557822,6.4193,155.78,155.73,6.4212]
[1724571558134,6.4193,155.78,155.72,6.4217]
[1724571558311,6.4189,155.79,155.73,6.4211]
[1724571558513,6.4189,155.79,155.64,6.4111]
[1724571558514,38.4185,155.83,155.74,6.4209]
[1724571558723,22.3749,155.83,155.67,38.04531674]
[1724571559019,22.3749,155.83,155.68,45.0]
[1724571559221,6.4189,155.79,155.73,6.4213]
[1724571559612,6.4194,155.78,155.73,6.4213]
[1724571559807,6.4189,155.79,155.73,6.4213]
[1724571560024,38.04531674,155.82,155.68,45.0]
[1724571560025,6.4185,155.8,155.68,45.0]
[1724571560321,6.4191,155.79,155.74,6.4209]
[1724571560527,38.04531674,155.82,155.72,6.4213]
[1724571560708,38.04531674,155.79,155.64,44.45641674]
[1724571560909,6.4213,155.73,155.68,6.4232]
[1724571561143,21.8131,155.75,155.66,6.4238]
[1724571561437,6.4226,155.7,155.65,6.4245]
[1724571561809,38.04531674,155.73,155.59,21.8104]
[1724571562005,6.423,155.69,155.64,6.4249]
[1724571562232,6.4226,155.7,155.65,6.4246]
[1724571562614,6.4232,155.69,155.63,6.4251]
[1724571562812,6.4234,155.68,155.59,21.8104]
[1724571563010,6.4234,155.68,155.57,38.04531674]
[1724571563775,6.4242,155.66,155.55,21.8104]
[1724571564038,21.8131,155.65,155.51,59.85571674]
[1724571565131,28.2377,155.65,155.59,6.4269]
[1724571565646,21.8131,155.65,155.59,6.4271]
[1724571566056,21.8131,155.65,155.54,38.04531674]
[1724571566353,21.8131,155.65,155.61,6.4261]
[1724571566954,21.8131,155.69,155.65,6.4245]
[1724571567452,28.2363,155.69,155.54,38.04531674]
[1724571567743,28.2363,155.69,155.55,46.28476431]
[1724571567947,21.8131,155.69,155.64,6.425]
[1724571568335,28.2362,155.69,155.64,6.425]
[1724571568535,6.4234,155.68,155.62,6.4256]
[1724571568844,21.8131,155.69,155.62,6.4256]
[1724571569038,6.4238,155.67,155.61,6.4263]
[1724571569245,6.4238,155.67,155.55,1.28512111]
[1724571569544,6.4234,155.68,155.62,6.4255]
[1724571569745,6.4236,155.68,155.61,6.4262]
[1724571569949,21.8131,155.69,155.54,38.04531674]
[1724571570130,6.4238,155.68,155.62,6.4256]
[1724571570323,6.4238,155.67,155.62,6.4256]
[1724571570762,6.4252,155.64,155.58,6.4271]
[1724571571051,6.4252,155.64,155.51,59.85571674]
[1724571571427,6.4245,155.66,155.6,6.4267]
[1724571571847,6.4247,155.65,155.6,6.4267]
[1724571572024,6.4242,155.66,155.6,6.4267]
[1724571572446,31.7613707,155.67,155.59,6.4271]
[1724571572648,6.4258,155.63,155.52,31.7613707]
[1724571572860,6.4258,155.63,155.51,21.8104]
[1724571573032,38.1864707,155.64,155.51,21.8104]
[1724571573234,38.1855707,155.67,155.61,6.4261]
[1724571573543,6.4248,155.65,155.58,6.4271]
[1724571573849,6.4248,155.65,155.52,31.7613707]
[1724571574049,31.7613707,155.67,155.59,6.4267]
[1724571574241,6.4249,155.65,155.52,31.7613707]
[1724571574440,6.4249,155.65,155.59,6.4269]
[1724571575166,31.7613707,155.67,155.62,6.4258]
[1724571575330,38.1852707,155.67,155.52,33.0465719]
[1724571575655,31.7613707,155.67,155.62,6.4258]
[1724571575959,6.4242,155.66,155.6,6.4263]
[1724571576123,31.7613707,155.67,155.52,31.7613707]
[1724571576328,6.4252,155.64,155.53,1.28525519]
[1724571576623,6.4254,155.64,155.58,6.4275]
[1724571576823,31.7613707,155.67,155.59,6.427]
[1724571577027,6.4255,155.63,155.52,31.7613707]
[1724571577242,6.426,155.62,155.57,6.4278]
[1724571578032,6.4255,155.63,155.57,6.4278]
[1724571578234,31.7613707,155.67,155.6,6.4266]
[1724571578437,6.4248,155.65,155.6,6.4266]
[1724571579053,21.8131,155.69,155.55,31.7613707]
[1724571579259,21.8131,155.69,155.56,45.0]
[1724571580743,21.8131,155.69,155.57,1.28492165]
[1724571580938,21.8131,155.69,155.63,6.4251]
[1724571581259,28.2361,155.69,155.63,6.4251]
[1724571581449,21.8131,155.69,155.66,6.4241]
[1724571581643,6.4219,155.72,155.66,6.4241]
[1724571582362,6.4223,155.71,155.65,6.4246]
[1724571583436,31.7613707,155.7,155.63,6.4251]
[1724571583638,6.4235,155.68,155.63,6.4251]
[1724571584036,31.7613707,155.7,155.65,6.4246]
[1724571584545,38.1842707,155.7,155.64,6.425]
[1724571584737,6.4231,155.69,155.64,6.425]
[1724571585656,6.4235,155.68,155.56,45.0]
[1724571585861,6.4235,155.68,155.63,6.4254]
[1724571586066,6.4235,155.68,155.62,6.4258]
[1724571586273,47.8178707,155.7,155.6,6.4264]
[1724571586456,31.7613707,155.67,155.55,53.7747707]
[1724571586645,6.4246,155.66,155.61,6.4262]
[1724571587460,31.7613707,155.67,155.62,6.4258]
[1724571588070,38.1851707,155.67,155.62,6.4258]
[1724571588779,6.4244,155.66,155.61,6.4262]
[1724571589070,38.1851707,155.67,155.62,6.4259]
[1724571589471,6.4234,155.69,155.58,31.7613707]
[1724571589773,6.4231,155.69,155.64,6.425]
[1724571590154,6.4234,155.68,155.63,6.4254]
[1724571590958,6.4234,155.68,155.62,6.4258]
[1724571591152,6.4238,155.67,155.62,6.4258]
[1724571591352,6.4234,155.68,155.63,6.4253]
[1724571592079,31.7613707,155.7,155.55,53.7747707]
[1724571592251,31.7613707,155.7,155.56,45.0]
[1724571592666,6.4233,155.69,155.64,6.425]
[1724571593061,31.7613707,155.7,155.56,45.0]
[1724571593267,6.4242,155.67,155.62,6.4255]
[1724571593575,38.1855707,155.67,155.62,6.4255]
[1724571594083,31.7613707,155.67,155.6,6.4264]
[1724571594776,6.425,155.65,155.6,6.4264]
[1724571594963,6.4258,155.63,155.57,6.4279]
[1724571595687,6.4258,155.63,155.58,6.4274]
[1724571596189,22.6499,155.66,155.59,1.28535364]
[1724571596366,22.6499,155.66,155.53,1.28511843]
[1724571596572,22.6499,155.66,155.55,31.7613707]
[1724571596776,22.6499,155.66,155.62,6.4258]
[1724571597174,38.5316,155.74,155.51,22.0134]
[1724571597175,29.0725,155.7,155.65,6.4246]
[1724571598295,29.0725,155.7,155.64,6.425]
[1724571600087,6.4242,155.67,155.61,6.4262]
[1724571600284,6.4242,155.67,155.62,6.4258]
[1724571600285,6.4238,155.67,155.62,6.4258]
[1724571600483,31.7613707,155.69,155.55,47.0970707]
[1724571600669,31.7613707,155.69,155.56,1.28510782]
[1724571600871,6.4237,155.68,155.55,47.0970707]
[1724571601892,31.7613707,155.69,155.56,1.28489543]
[1724571602096,6.4245,155.66,155.61,6.4259]
[1724571602302,31.7613707,155.69,155.55,47.0970707]
[1724571602598,22.6499,155.7,155.55,47.0970707]
[1724571602599,22.6499,155.7,155.57,31.7613707]
[1724571602902,6.4225,155.71,155.66,6.424]
[1724571603411,21.3613,155.74,155.64,6.4248]
[1724571603702,6.423,155.69,155.64,6.4248]
[1724571603876,21.3613,155.74,155.65,7.70920445]
[1724571604077,6.4225,155.71,155.66,6.4242]
[1724571604480,53.1226707,155.74,155.67,7.70843538]
[1724571604686,21.3613,155.74,155.67,6.4238]
[1724571604889,31.7613707,155.76,155.63,15.3357]
[1724571605106,27.7806,155.78,155.72,6.4216]
[1724571605405,6.4197,155.77,155.72,6.4216]
[1724571605589,6.4197,155.77,155.65,31.7613707]
[1724571605590,6.4197,155.77,155.71,6.422]
[1724571605910,6.4214,155.73,155.68,6.4233]
[1724571606214,6.4218,155.72,155.66,6.4238]
[1724571606903,6.4226,155.7,155.64,6.4247]
[1724571607109,31.7613707,155.7,155.59,21.4434]
[1724571607291,53.1226707,155.7,155.63,6.4254]
[1724571607781,53.1226707,155.7,155.64,6.425]
[1724571608177,53.1226707,155.7,155.62,8.82293114]
[1724571608395,6.4238,155.67,155.62,6.4256]
[1724571608609,6.4243,155.66,155.61,6.4263]
[1724571610520,31.7613707,155.68,155.61,6.426]
[1724571610819,6.4242,155.67,155.61,6.426]
[1724571611121,6.4248,155.65,155.59,6.4268]
[1724571611331,31.7613707,155.65,155.6,2.3980596]
[1724571611628,21.3613,155.7,155.51,21.4434]
[1724571611629,6.4267,155.6,155.51,21.4434]
[1724571611787,31.7613707,155.62,155.51,21.4434]
[1724571611788,38.1875707,155.62,155.56,6.4283]
[1724571611989,38.1875707,155.62,155.57,2.398995]
[1724571612189,38.1875707,155.62,155.56,6.4283]
[1724571612408,6.4263,155.61,155.55,8.82797721]
[1724571612621,6.4273,155.59,155.54,10.85239238]
[1724571613000,6.4266,155.61,155.54,10.85239238]
[1724571613207,6.4266,155.61,155.55,2.39941118]
[1724571613513,6.4268,155.6,155.55,2.39941118]
[1724571613928,6.4268,155.6,155.55,6.4287]
[1724571614129,53.1226707,155.62,155.56,6.4282]
[1724571614630,21.3613,155.62,155.57,1.2854556]
[1724571614801,21.3613,155.62,155.58,6.4275]
[1724571615003,21.3613,155.62,155.51,21.4434]
[1724571615004,53.1226707,155.66,155.59,1.28534804]
[1724571615224,27.7856,155.66,155.61,6.4261]
[1724571615430,31.7613707,155.68,155.56,33.04645407]
[1724571615431,6.4234,155.68,155.56,33.04645407]
[1724571615606,27.7843,155.7,155.58,21.4434]
[1724571615807,31.7613707,155.74,155.66,6.4242]
[1724571616028,31.7613707,155.72,155.65,6.4246]
[1724571616614,38.1830707,155.72,155.67,6.4238]
[1724571616815,31.7613707,155.72,155.65,6.4243]
[1724571617217,31.7613707,155.7,155.63,6.4251]
[1724571617605,6.423,155.69,155.64,6.425]
[1724571617802,31.7613707,155.7,155.64,6.425]
[1724571618032,31.7613707,155.7,155.62,2.39761536]
[1724571618214,31.7613707,155.7,155.65,6.4246]
[1724571618215,38.1839707,155.7,155.65,6.4246]
[1724571618428,6.423,155.69,155.62,2.39761536]
[1724571618723,6.423,155.69,155.61,2.39761536]
[1724571618909,6.423,155.69,155.59,4.42114386]
[1724571619110,6.423,155.69,155.6,2.3976059]
[1724571619339,31.7613707,155.7,155.59,4.42114386]
[1724571619632,31.7613707,155.7,155.62,6.4258]
[1724571619845,6.4234,155.68,155.62,6.4258]
[1724571620213,6.424,155.67,155.61,8.82410353]
[1724571620410,6.424,155.67,155.59,2.39790353]
[1724571620411,6.4255,155.63,155.59,2.39790353]
[1724571620623,6.425,155.64,155.58,6.4272]
[1724571620943,6.4247,155.65,155.56,2.39858078]
[1724571621240,6.4247,155.65,155.55,4.42272139]
[1724571621241,15.9628,155.66,155.57,2.39889444]
[1724571621456,15.9628,155.66,155.55,4.42322324]
[1724571621457,6.4251,155.64,155.58,6.4275]
[1724571621735,6.4256,155.63,155.58,6.4275]
[1724571621956,6.425,155.65,155.58,6.4275]
[1724571622115,15.9628,155.66,155.58,6.4275]
[1724571622310,6.4259,155.62,155.54,22.2151]
[1724571622933,6.4255,155.63,155.57,6.4279]
[1724571623133,6.4255,155.63,155.58,1.28529704]
[1724571623433,6.4255,155.63,155.55,2.39927879]
[1724571623742,6.0075,155.67,155.62,6.4258]
[1724571623913,47.7241707,155.7,155.61,6.4262]
[1724571624223,47.7241707,155.7,155.6,6.4267]
[1724571625334,31.7613707,155.65,155.55,45.0]
[1724571625523,6.4252,155.64,155.55,45.0]
[1724571625840,38.1859707,155.65,155.59,6.4271]
[1724571626042,6.4252,155.64,155.59,6.4271]
[1724571626221,6.4252,155.64,155.58,6.4275]
[1724571626542,6.4252,155.64,155.59,7.71236817]
[1724571626717,6.4252,155.64,155.59,6.4271]
[1724571626916,6.4255,155.63,155.57,6.4276]
[1724571627322,6.4255,155.63,155.58,6.4273]
[1724571627935,25.41129531,155.64,155.54,22.2151]
[1724571628137,6.4268,155.6,155.54,28.6439]
[1724571628438,6.4271,155.59,155.54,6.4288]
[1724571629332,6.4271,155.59,155.5,23.50063069]
[1724571629333,31.83719531,155.62,155.56,6.428]
[1724571629527,25.41129531,155.64,155.57,1.28541417]
[1724571629726,25.41129531,155.64,155.52,1.28534722]
[1724571629929,25.41129531,155.66,155.55,25.41129531]
[1724571630129,25.41129531,155.66,155.56,1.28516321]
[1724571630352,6.4246,155.65,155.59,6.4267]
[1724571630541,6.4246,155.65,155.5,22.2151]
[1724571630542,6.4254,155.64,155.53,25.41129531]
[1724571630744,6.4254,155.64,155.56,1.28511986]
[1724571630942,6.4254,155.64,155.54,45.0]
[1724571632438,6.4254,155.64,155.59,6.427]
[1724571632756,6.4255,155.63,155.58,6.4274]
[1724571633259,31.83579531,155.66,155.6,6.4266]
[1724571633632,6.0075,155.67,155.54,45.0]
[1724571633633,12.4314,155.67,155.62,6.4258]
[1724571633829,6.423,155.69,155.64,6.4249]
[1724571634356,6.423,155.69,155.62,6.4255]
[1724571634532,6.4235,155.68,155.62,6.4255]
[1724571634859,6.0075,155.71,155.59,31.74788347]
[1724571635059,38.16918347,155.73,155.6,46.28469687]
[1724571635361,38.16918347,155.73,155.61,33.03241716]
[1724571635529,6.4213,155.73,155.62,45.0]
[1724571635727,6.4219,155.72,155.67,6.4238]
[1724571636237,15.9628,155.74,155.62,45.0]
[1724571636238,15.9628,155.74,155.68,1.28456087]
[1724571636436,15.9628,155.74,155.58,53.96298347]
[1724571636648,6.4222,155.71,155.65,6.4246]
[1724571636851,6.4226,155.7,155.65,6.4246]
[1724571637059,6.4238,155.68,155.62,6.4255]
[1724571637357,6.4238,155.68,155.63,1.28489935]
[1724571637530,6.4238,155.67,155.62,6.4255]
[1724571637930,6.4238,155.67,155.62,6.4257]
[1724571638342,31.74788347,155.68,155.58,22.2151]
[1724571638547,6.4246,155.65,155.59,1.28512355]
[1724571638756,6.4242,155.66,155.6,6.4263]
[1724571638952,6.4242,155.66,155.61,1.28512316]
[1724571639159,6.4242,155.66,155.6,6.4263]
[1724571639362,6.4249,155.65,155.59,6.4271]
[1724571640036,6.4249,155.65,155.6,1.28516166]
[1724571640944,6.4249,155.65,155.6,7.71166166]
[1724571641262,12.4317,155.67,155.61,6.4261]
[1724571641467,6.4244,155.66,155.61,6.4261]
[1724571641766,6.4244,155.66,155.6,6.4267]
[1724571641963,6.4244,155.66,155.61,6.4261]
[1724571642166,12.4313,155.67,155.61,6.4262]
[1724571642348,6.4242,155.66,155.61,6.4262]
[1724571642755,31.74788347,155.68,155.56,31.74788347]
[1724571642756,6.4236,155.68,155.56,31.74788347]
[1724571642941,38.13898347,155.71,155.57,46.284816]
[1724571643141,6.423,155.69,155.64,6.4249]
[1724571643444,6.423,155.69,155.63,6.4254]
[1724571643645,6.4235,155.68,155.63,6.4254]
[1724571644255,6.4226,155.7,155.57,45.0]
[1724571644456,6.3911,155.71,155.66,6.4239]
[1724571644981,6.4223,155.71,155.66,6.4239]
[1724571645191,6.4223,155.71,155.59,31.74788347]
[1724571645192,6.4216,155.73,155.67,6.4237]
[1724571645478,6.4218,155.72,155.66,6.4242]
[1724571646366,6.4218,155.72,155.67,6.4237]
[1724571648881,22.3841,155.74,155.68,6.4233]
[1724571649065,6.3911,155.75,155.71,6.4221]
[1724571649267,15.7537,155.78,155.65,31.74788347]
[1724571649471,15.7537,155.78,155.66,46.28413715]
[1724571650175,6.42,155.77,155.71,6.4221]
[1724571650854,15.7537,155.78,155.7,6.4225]
[1724571651050,6.421,155.74,155.62,31.74788347]
[1724571651273,6.4214,155.73,155.68,6.4234]
[1724571651794,6.4201,155.77,155.69,1.2844661]
[1724571651993,6.4201,155.77,155.66,1.28416648]
[1724571652199,6.4201,155.77,155.66,46.28416648]
[1724571652579,35.79193096,155.84,155.68,38.12268347]
[1724571652770,6.4176,155.82,155.77,6.4196]
[1724571652973,6.4176,155.82,155.76,6.4201]
[1724571653173,6.4172,155.83,155.71,31.74788347]
[1724571653388,22.1448,155.84,155.72,45.0]
[1724571653590,22.1448,155.84,155.73,1.28380423]
[1724571653889,22.1448,155.84,155.72,45.0]
[1724571654095,6.4184,155.81,155.74,6.4205]
[1724571654301,6.4184,155.81,155.75,7.70443733]
[1724571654473,6.4184,155.81,155.76,1.28378319]
[1724571654675,31.74788347,155.82,155.74,6.4209]
[1724571654969,6.4189,155.79,155.73,6.4211]
[1724571655172,6.4189,155.79,155.74,7.70486659]
[1724571655368,6.4189,155.79,155.69,1.28396452]
[1724571655565,6.4189,155.79,155.69,46.28396452]
[1724571655793,6.4193,155.78,155.73,6.4213]
[1724571655999,6.4197,155.77,155.71,6.4218]
[1724571656295,6.4193,155.78,155.72,7.70581822]
[1724571656479,69.93518347,155.84,155.68,6.3748]
[1724571656480,6.4187,155.8,155.68,38.12268347]
[1724571656676,6.4187,155.8,155.69,1.28383983]
[1724571656992,6.4187,155.8,155.68,38.12268347]
[1724571657199,6.4191,155.79,155.74,6.4209]
[1724571657374,6.4194,155.78,155.69,45.0]
[1724571657575,6.4187,155.8,155.69,45.0]
[1724571657801,6.4189,155.79,155.74,6.4209]
[1724571658300,6.4189,155.79,155.73,6.4213]
[1724571658796,6.4195,155.78,155.73,6.4213]
[1724571658987,31.74788347,155.8,155.71,6.4217]
[1724571659682,31.74788347,155.8,155.68,6.3748]
[1724571659884,31.74788347,155.83,155.68,38.12268347]
[1724571660097,6.4188,155.8,155.74,6.4209]
[1724571660315,31.74788347,155.83,155.73,6.4213]
[1724571660482,6.4193,155.79,155.72,6.4214]
[1724571660679,6.4193,155.79,155.68,38.12268347]
[1724571661001,6.4193,155.79,155.69,45.0]
[1724571661509,22.1448,155.84,155.71,31.74788347]
[1724571661804,53.89268347,155.84,155.72,45.0]
[1724571662190,6.4187,155.8,155.75,6.4204]
[1724571663089,13.64713096,155.89,155.77,25.35485002]
[1724571663287,6.4147,155.9,155.83,6.4168]
[1724571663598,6.4149,155.89,155.83,6.4168]
[1724571664100,25.35485002,155.92,155.84,6.4166]
[1724571664279,6.4149,155.89,155.83,6.417]
[1724571664480,6.4143,155.91,155.81,25.35485002]
[1724571664686,21.8224,155.93,155.83,25.35485002]
[1724571664879,21.8224,155.93,155.84,1.28297015]
[1724571665205,28.2357,155.93,155.87,6.4152]
[1724571665402,28.2357,155.93,155.86,6.4159]
[1724571665578,6.4137,155.92,155.86,6.4159]
[1724571665777,6.4137,155.92,155.87,1.28293481]
[1724571665990,21.8224,155.93,155.87,1.28293481]
[1724571666189,22.6342935,155.97,155.87,1.28293481]
[1724571666503,22.6342935,155.97,155.86,45.0]
[1724571666705,22.6342935,155.97,155.85,45.0]
[1724571667005,6.4119,155.96,155.9,6.4142]
[1724571667310,6.4119,155.96,155.91,6.4139]
[1724571667508,0.8118935,155.97,155.92,1.28248186]
[1724571667686,0.8118935,155.97,155.93,6.413]
[1724571667881,0.8118935,155.97,155.87,31.63326076]
[1724571667882,0.8118935,155.97,155.91,6.4137]
[1724571668078,0.8118935,155.97,155.92,7.69594618]
[1724571668298,0.8118935,155.97,155.92,6.4134]
[1724571668502,0.8118935,155.97,155.95,6.4121]
[1724571668816,0.8118935,155.97,155.93,6.413]
[1724571670124,0.8118935,155.97,155.91,6.4136]
[1724571670288,0.8118935,155.97,155.86,6.1337]
[1724571670289,6.4124,155.95,155.9,6.4143]
[1724571670490,7.2237935,155.97,155.91,1.28265578]
[1724571670698,6.4123,155.95,155.9,6.4143]
[1724571672095,31.63326076,155.96,155.86,6.4158]
[1724571672319,31.63326076,155.93,155.85,6.4162]
[1724571672620,6.414,155.91,155.85,6.4162]
[1724571673190,6.4144,155.9,155.82,6.1337]
[1724571673722,6.4144,155.9,155.83,1.28305322]
[1724571674223,6.4144,155.9,155.82,6.1337]
[1724571674391,6.4148,155.89,155.83,1.28306556]
[1724571674809,6.4143,155.9,155.83,1.28306556]
[1724571675008,6.4143,155.9,155.8,15.4845]
[1724571675817,6.4143,155.9,155.84,6.4164]
[1724571676925,31.63326076,155.9,155.78,6.1337]
[1724571677102,6.4153,155.88,155.78,6.1337]
[1724571677308,6.4153,155.88,155.79,1.28321753]
[1724571677611,6.4156,155.87,155.82,6.4172]
[1724571678602,6.4152,155.88,155.83,1.28326737]
[1724571679324,6.4148,155.89,155.83,7.70036737]
[1724571679525,6.4148,155.89,155.84,6.4168]
[1724571679700,6.4148,155.89,155.85,1.28304261]
[1724571681536,6.4143,155.91,155.85,7.69934261]
[1724571681738,13.0758,155.92,155.86,6.4158]
[1724571682637,6.4139,155.91,155.86,6.4158]
[1724571682808,6.6623,155.92,155.78,37.76696076]
[1724571682809,6.4144,155.9,155.78,37.76696076]
[1724571683015,6.4147,155.89,155.83,6.4172]
[1724571683636,6.4147,155.89,155.84,1.28305484]
[1724571683828,6.6623,155.92,155.84,1.28305484]
[1724571684135,6.6623,155.92,155.78,37.76696076]
[1724571684340,6.6623,155.92,155.79,45.0]
[1724571685531,13.0759,155.92,155.87,6.4155]
[1724571685932,13.0759,155.92,155.86,6.4159]
[1724571686452,6.6623,155.92,155.83,6.4171]
[1724571686624,6.4147,155.9,155.84,7.69974864]
[1724571686821,6.4149,155.89,155.85,1.28305276]
[1724571690039,6.4144,155.9,155.84,6.4167]